[Event "WYCC 2018 O16"]
[Site "Halkidiki"]
[Date "2018.10.29"]
[Round "10"]
[White "Petriashvili, Nikoloz"]
[Black "Sankalp Gupta"]
[Result "1-0"]
[ECO "A10"]
[WhiteElo "2343"]
[BlackElo "2352"]
[Annotator "NA"]
[PlyCount "103"]
[EventDate "2018.10.20"]
[EventType "swiss"]
[EventCountry "GRE"]
[SourceTitle "playchess.com"]
[Source "ChessBase"]
[SourceQuality "1"]
[TimeControl "40/5400+30:1800+30"]

1. c4 {[%emt 0:00:00]} g6 {[%emt 0:03:36]} 2. Nc3 {[%emt 0:00:18]} Nf6 {[%emt 0:00:12]} 3. Nf3 {[%emt 0:00:15]} Bg7 {[%emt 0:00:59]} 4. e4 {[%emt 0:00:24]} c5 {[%emt 0:00:46]} 5. d4 {[%emt 0:00:21]} cxd4 {[%emt 0:00:06]} 6. Nxd4 {[%emt 0:00:11]} O-O {[%emt 0:00:37]} 7. Be2 {[%emt 0:02:55]} Nc6 {[%emt 0:00:06]} 8. Be3 {[%emt 0:00:06]} b6 {[%emt 0:05:35]} 9. O-O {[%emt 0:06:32]} Bb7 {[%emt 0:00:06]} 10. f3 {[%emt 0:00:38]} e6 {[%emt 0:15:34] LiveBook: 125 Games} 11. Nxc6 {[%emt 0:00:41]} Bxc6 {[%emt 0:08:14] B38: Sicilian: Maroczy Bind with 5...Bg7 and 7...0-0} 12. Qd6 {[%emt 0:00:28]} (12. Qd2 d5 13. cxd5 exd5 14. e5 Ne8 15. f4 f6 16. Bd4 fxe5 17. fxe5 Nc7 18. Rxf8+ Qxf8 19. Bg4 {½-½ (48) Meskovs,N (2490)-Shaposhnikov,E (2557) chess.com INT 2017}) 12... Ne8 {[%emt 0:00:48]} 13. Qd2 {[%emt 0:00:06]} Qe7 {[%emt 0:01:40]} 14. Rad1 {[%emt 0:03:02]} f5 {[%emt 0:01:27]} 15. exf5 {[%emt 0:04:35]} gxf5 {[%emt 0:00:21]} 16. f4 {[%emt 0:04:09]} Rc8 {[%emt 0:02:16]} 17. Bd4 $146 {[%emt 0:02:04]} ({Predecessor:} 17. b3 Nf6 18. Bf3 Rfd8 19. Bd4 {½-½ (26) Adamski,J-Balcerowski,W Augustow 1975}) 17... Nd6 {[%emt 0:07:15]} 18. b3 {[%emt 0:02:20]} Ne4 {[%emt 0:06:25]} 19. Nxe4 {[%emt 0:04:12]} Bxe4 $11 {[%emt 0:02:06]} 20. Bxg7 {[%emt 0:18:04]} Qxg7 {[%emt 0:00:15]} 21. Bf3 {[%emt 0:00:40]} d5 {[%emt 0:00:09]} 22. Bxe4 {[%emt 0:00:04]} dxe4 {[%emt 0:00:35]} 23. Qd7 {[%emt 0:00:07]} Qxd7 {[%emt 0:02:18]} 24. Rxd7 {[%emt 0:00:02]} Rf7 {[%emt 0:00:02]} 25. Rfd1 {[%emt 0:00:49]} Rc7 {[%emt 0:00:12]} 26. Rd8+ {[%emt 0:01:19]} Rf8 {[%emt 0:02:49]} 27. R8d6 {[%emt 0:00:06]} Re8 {[%emt 0:02:20]} 28. Kf2 {[%emt 0:00:46]} Kf7 {[%emt 0:00:44]} 29. h3 {[%emt 0:12:09]} h5 {[%emt 0:12:48]} 30. g4 {[%emt 0:00:42]} hxg4 {[%emt 0:00:36]} 31. hxg4 {[%emt 0:00:03]} fxg4 {[%emt 0:01:13]} 32. Rh1 {[%emt 0:03:01]} Kf6 {[%emt 0:07:15]} 33. Rh6+ {[%emt 0:02:30]} Kf5 {[%emt 0:00:39]} 34. Kg3 {[%emt 0:01:09]} Ree7 {[%emt 0:02:16]} 35. Rh5+ {[%emt 0:05:14]} Kf6 {[%emt 0:00:14]} 36. Rd4 {[%emt 0:02:12]} Rcd7 {[%emt 0:01:15]} 37. Rxe4 {[%emt 0:00:34]} Rd2 {[%emt 0:13:17]} 38. Rh6+ {[%emt 0:00:49]} Kf7 {[%emt 0:00:29]} 39. f5 {[%emt 0:04:39]} e5 {[%emt 0:01:20]} 40. Kxg4 {[%emt 0:00:00]} Rxa2 {[%emt 0:00:00]} 41. Rh7+ {[%emt 0:07:57]} Kf6 {[%emt 0:04:08]} 42. Rxe7 {[%emt 0:00:19]} Kxe7 {[%emt 0:00:06]} 43. Rxe5+ {[%emt 0:00:02]} Kf7 {[%emt 0:02:19]} 44. Rd5 {[%emt 0:07:16]} Ke7 {[%emt 0:02:13]} 45. Rd3 {[%emt 0:02:00]} a6 {[%emt 0:10:33]} 46. Re3+ {[%emt 0:01:16]} Kf7 {[%emt 0:00:19]} 47. Re6 {[%emt 0:00:32]} b5 {[%emt 0:01:45]} 48. cxb5 {[%emt 0:00:28]} axb5 {[%emt 0:00:11]} 49. Rb6 {[%emt 0:00:08]} Rg2+ {[%emt 0:00:04]} 50. Kf4 {[%emt 0:00:36]} Rf2+ {[%emt 0:00:09]} 51. Ke5 {[%emt 0:00:53]} Re2+ {[%emt 0:00:07]} 52. Kd6 {[%emt 0:00:38]} 1-0

[Event "WYCC 2018 O16"]
[Site "Halkidiki"]
[Date "2018.10.29"]
[Round "10"]
[White "Olsen, Filip Boe"]
[Black "Engel, Luis"]
[Result "0-1"]
[ECO "E47"]
[WhiteElo "2335"]
[BlackElo "2441"]
[Annotator "NA RC"]
[PlyCount "56"]
[EventDate "2018.10.20"]
[EventType "swiss"]
[EventCountry "GRE"]
[SourceTitle "playchess.com"]
[Source "ChessBase"]
[SourceQuality "1"]
[TimeControl "40/5400+30:1800+30"]

1. d4 {[%emt 0:00:00]} Nf6 {[%emt 0:00:00]} 2. c4 {[%emt 0:00:00]} e6 {[%emt 0:00:00]} 3. Nc3 {[%emt 0:00:00]} Bb4 {[%emt 0:00:00]} 4. e3 {[%emt 0:00:00]} O-O {[%emt 0:00:00]} 5. Bd3 {[%emt 0:00:04]} c5 {[%emt 0:00:00]} 6. Nf3 {[%emt 0:00:08]} d5 {[%emt 0:00:04]} 7. cxd5 {[%emt 0:00:15]} exd5 {[%emt 0:00:08] E53: Nimzo-Indian: Rubinstein: Main Line (4...0-0 5 Nf3 d5 6 Bd3 c5 7 0-0)} 8. dxc5 {[%emt 0:00:11]} Nbd7 {[%emt 0:00:14]} 9. O-O {[%emt 0:00:21]} Nxc5 {[%emt 0:00:54]} 10. Ne2 {[%emt 0:00:19]} Bg4 {[%emt 0:10:38] LiveBook: 6 Partien} 11. Nfd4 {[%emt 0:00:28]} Nxd3 {[%emt 0:07:21]} 12. Qxd3 {[%emt 0:00:11]} Rc8 $146 {[%emt 0:00:54]} ({Predecessor:} 12... Bxe2 13. Nxe2 Bd6 14. Bd2 Be5 15. Bc3 {½-½ (56) Harikrishna,P (2755)-Wojtaszek,R (2745) Shamkir 2017}) 13. b3 {[%emt 0:07:57]} Bd6 {[%emt 0:05:23]} 14. Bb2 {[%emt 0:01:10]} Re8 {[%emt 0:02:45]} 15. Rac1 {[%emt 0:12:17]} Bb8 {[%emt 0:04:40]} 16. f3 {[%emt 0:07:36]} Bh5 {[%emt 0:08:38]} 17. Nf4 {[%emt 0:01:58]} Bg6 {[%emt 0:01:44]} 18. Nxg6 {[%emt 0:00:33]} hxg6 {[%emt 0:00:22]} 19. Rxc8 {[%emt 0:05:51]} Qxc8 {[%emt 0:00:07]} 20. Rd1 {[%emt 0:08:38]} Qc7 {[%emt 0:02:18]} 21. f4 {[%emt 0:02:13]} a6 {[%emt 0:26:02]} 22. h3 {[%emt 0:12:28]} Ba7 {[%emt 0:03:48]} 23. Qc2 {[%emt 0:09:20]} Qe7 {[%emt 0:04:36]} 24. Rd3 {[%emt 0:00:55]} Nh5 $15 {[%emt 0:03:28]} 25. Kh2 {[%emt 0:06:02]} Qh4 {[%emt 0:01:55]} 26. Qc3 {[%emt 0:13:59]} Qg3+ {[%emt 0:01:44]} 27. Kh1 {[%emt 0:00:09]} Nxf4 {[%emt 0:01:08]} 28. Rd2 {[%emt 0:00:18]} Rxe3 {[%emt 0:01:23]} 0-1

[Event "WYCC 2018 O16"]
[Site "Halkidiki"]
[Date "2018.10.29"]
[Round "10"]
[White "Sahidi, Samir"]
[Black "Thilakarathne, G M H"]
[Result "1/2-1/2"]
[ECO "B59"]
[WhiteElo "2315"]
[BlackElo "2268"]
[Annotator "NA"]
[PlyCount "89"]
[EventDate "2018.10.20"]
[EventType "swiss"]
[EventCountry "GRE"]
[SourceTitle "playchess.com"]
[Source "ChessBase"]
[SourceQuality "1"]
[TimeControl "40/5400+30:1800+30"]

1. e4 {[%emt 0:00:00]} c5 {[%emt 0:00:00]} 2. Nf3 {[%emt 0:00:00]} d6 {[%emt 0:00:00]} 3. d4 {[%emt 0:00:54]} cxd4 {[%emt 0:00:01]} 4. Nxd4 {[%emt 0:00:28]} Nf6 {[%emt 0:00:07]} 5. Nc3 {[%emt 0:01:17]} Nc6 {[%emt 0:00:35]} 6. Be2 {[%emt 0:07:06]} e5 {[%emt 0:00:50]} 7. Nb3 {[%emt 0:01:04]} Be7 {[%emt 0:02:05]} 8. Bg5 {[%emt 0:00:40]} O-O {[%emt 0:07:36]} 9. Bxf6 {[%emt 0:00:38]} Bxf6 {[%emt 0:00:08]} 10. Nd5 {[%emt 0:00:35]} Be6 {[%emt 0:06:00]} 11. O-O {[%emt 0:10:26]} Bg5 {[%emt 0:08:19]} 12. Qd3 {[%emt 0:02:42] LiveBook: 3 Games B59: Classical Sicilian: 6 Be2 e5 7 Nb3} (12. c3 Rc8 13. Bg4 Qd7 14. h3 g6 15. Bf3 Ne7 16. Nxe7+ Bxe7 17. Bg4 Bd8 18. Bxe6 fxe6 19. Nd2 Bb6 20. Nf3 Qc6 {½-½ (46) Liang,J (2465)-Gao,R (2566) China 2018}) 12... Rc8 {[%emt 0:10:48]} 13. c3 {[%emt 0:01:06]} Ne7 {[%emt 0:01:01]} 14. Nxe7+ {[%emt 0:01:15]} Qxe7 {[%emt 0:00:10]} 15. Rfd1 {[%emt 0:01:44]} Rfd8 {[%emt 0:01:37]} 16. Bf3 {[%emt 0:03:37]} g6 {[%emt 0:03:59]} 17. g3 $146 {[%emt 0:01:07]} ({Predecessor:} 17. Nd2 f5 18. exf5 gxf5 19. Bd5 Bxd5 20. Qxd5+ {1-0 (40) Sobhani,F-Rezaei,R (2270) Iran 1993}) 17... h5 {[%emt 0:03:59]} 18. h4 {[%emt 0:07:26]} Bh6 {[%emt 0:00:59]} 19. Nd2 {[%emt 0:00:38]} Kg7 {[%emt 0:13:00]} 20. Nf1 {[%emt 0:01:49]} Bc4 {[%emt 0:02:57]} 21. Qc2 {[%emt 0:00:06]} b5 {[%emt 0:04:24]} 22. a3 {[%emt 0:01:39]} Qe6 {[%emt 0:07:14]} 23. Nd2 {[%emt 0:02:08]} Bxd2 {[%emt 0:08:43]} 24. Qxd2 {[%emt 0:00:14]} Bb3 {[%emt 0:00:45]} 25. Re1 {[%emt 0:00:27]} d5 {[%emt 0:00:39]} 26. exd5 {[%emt 0:03:42]} Bxd5 {[%emt 0:00:13]} 27. Bxd5 {[%emt 0:00:19]} Rxd5 {[%emt 0:00:36]} 28. Qe3 {[%emt 0:00:09]} Qd7 {[%emt 0:04:00]} 29. Re2 {[%emt 0:04:58]} Kh7 {[%emt 0:06:31]} 30. Rae1 $15 {[%emt 0:01:15]} Re8 {[%emt 0:00:38]} 31. Qf3 {[%emt 0:02:22]} a6 {[%emt 0:01:27]} 32. Kh2 {[%emt 0:01:17]} Re6 {[%emt 0:00:23]} 33. Qe3 {[%emt 0:01:36]} Kg7 {[%emt 0:01:24]} 34. Qe4 {[%emt 0:04:08]} Kh7 {[%emt 0:01:25]} 35. Qb4 {[%emt 0:12:34]} Kg7 {[%emt 0:01:50]} 36. b3 {[%emt 0:03:03]} Qc7 {[%emt 0:01:03]} 37. c4 {[%emt 0:01:25]} bxc4 {[%emt 0:00:16]} 38. bxc4 {[%emt 0:00:23]} Rd4 {[%emt 0:00:35]} 39. Rc1 {[%emt 0:01:28]} Rc6 {[%emt 0:00:35]} 40. Rec2 {[%emt 0:00:00]} Rc5 {[%emt 0:00:00]} 41. Qe1 {[%emt 0:02:31]} Rdxc4 {[%emt 0:14:02]} 42. Rxc4 {[%emt 0:00:45]} Rxc4 {[%emt 0:00:05]} 43. Rxc4 {[%emt 0:00:05]} Qxc4 {[%emt 0:00:07]} 44. Qxe5+ {[%emt 0:00:03]} Kh7 {[%emt 0:00:10]} 45. Qe3 {[%emt 0:00:08]} 1/2-1/2

[Event "WYCC 2018 O16"]
[Site "Halkidiki"]
[Date "2018.10.29"]
[Round "10"]
[White "Mis, Mieszko"]
[Black "Triantos, Konstantinos"]
[Result "0-1"]
[ECO "A62"]
[WhiteElo "2307"]
[BlackElo "2002"]
[Annotator "NA"]
[PlyCount "124"]
[EventDate "2018.10.20"]
[EventType "swiss"]
[EventCountry "GRE"]
[SourceTitle "playchess.com"]
[Source "ChessBase"]
[SourceQuality "1"]
[TimeControl "40/5400+30:1800+30"]

1. d4 {[%emt 0:00:00]} Nf6 {[%emt 0:00:00]} 2. c4 {[%emt 0:00:00]} e6 {[%emt 0:00:00]} 3. g3 {[%emt 0:00:00]} c5 {[%emt 0:00:00]} 4. d5 {[%emt 0:00:02]} exd5 {[%emt 0:00:00]} 5. cxd5 {[%emt 0:00:04]} d6 {[%emt 0:00:00]} 6. Nc3 {[%emt 0:01:05]} g6 {[%emt 0:00:07]} 7. Bg2 {[%emt 0:00:04]} Bg7 {[%emt 0:00:04]} 8. Nf3 {[%emt 0:00:06]} O-O {[%emt 0:00:07]} 9. O-O {[%emt 0:00:04]} Re8 {[%emt 0:00:09]} 10. Bf4 {[%emt 0:00:48]} Na6 {[%emt 0:01:04]} 11. Re1 {[%emt 0:02:23]} Bf5 {[%emt 0:02:39]} 12. Nd2 {[%emt 0:20:07]} Nh5 {[%emt 0:03:36]} 13. e4 {[%emt 0:01:13]} Nxf4 {[%emt 0:05:10]} 14. gxf4 {[%emt 0:00:11]} Bd7 {[%emt 0:00:42]} 15. Nc4 {[%emt 0:01:00]} Qf6 {[%emt 0:21:13]} 16. Qf3 {[%emt 0:09:33]} Nb4 {[%emt 0:02:54]} 17. Re2 {[%emt 0:08:55]} h5 $11 {[%emt 0:14:11]} 18. h3 {[%emt 0:08:12]} b5 {[%emt 0:03:34]} 19. e5 {[%emt 0:04:32]} dxe5 {[%emt 0:00:13]} 20. Nxe5 {[%emt 0:00:06]} Bf5 {[%emt 0:00:44]} 21. d6 {[%emt 0:10:48]} Qxd6 {[%emt 0:12:25]} 22. Qb7 {[%emt 0:07:50]} Bxe5 {[%emt 0:09:14]} 23. fxe5 {[%emt 0:06:12]} Qe6 {[%emt 0:00:22]} 24. Nd5 {[%emt 0:05:12]} Rab8 {[%emt 0:00:56]} 25. Nf6+ {[%emt 0:00:13]} Kh8 {[%emt 0:00:01]} 26. Qf3 {[%emt 0:00:21]} Red8 {[%emt 0:01:17]} 27. Qf4 {[%emt 0:01:38]} Kg7 {[%emt 0:00:35]} 28. Qg5 {[%emt 0:01:09]} Rh8 {[%emt 0:04:44]} 29. h4 {[%emt 0:01:46]} Nd3 {[%emt 0:05:01]} 30. Bd5 {[%emt 0:00:25]} Nxe5 {[%emt 0:00:02]} 31. Bxe6 {[%emt 0:05:28]} Nf3+ {[%emt 0:00:05]} 32. Kg2 {[%emt 0:00:29]} Nxg5 {[%emt 0:00:04]} 33. Bxf5 {[%emt 0:01:29]} Kxf6 {[%emt 0:00:15]} 34. Bd7 {[%emt 0:01:50]} Ne6 {[%emt 0:01:00]} 35. Bxe6 {[%emt 0:00:08]} Rhe8 {[%emt 0:05:04]} 36. Rc2 {[%emt 0:01:38]} Rxe6 {[%emt 0:00:19]} 37. Rxc5 {[%emt 0:00:03]} Re2 {[%emt 0:01:00]} 38. b4 {[%emt 0:03:17]} Re4 {[%emt 0:00:58]} 39. a4 {[%emt 0:00:32]} Rxh4 {[%emt 0:01:13]} 40. axb5 {[%emt 0:00:00]} Rxb4 {[%emt 0:00:00]} 41. Ra5 {[%emt 0:02:15]} Rb7 {[%emt 0:01:55]} 42. Kg3 {[%emt 0:00:57]} Rb3+ {[%emt 0:03:03]} 43. Kg2 {[%emt 0:00:40]} Kg7 {[%emt 0:01:16]} 44. Kh2 {[%emt 0:00:11]} h4 {[%emt 0:02:03]} 45. Kg2 {[%emt 0:00:42]} Rb6 {[%emt 0:00:54]} 46. Kg1 {[%emt 0:00:54]} h3 {[%emt 0:03:49]} 47. Re5 {[%emt 0:01:12]} Kf6 {[%emt 0:02:50]} 48. Rc5 {[%emt 0:00:11]} Re6 {[%emt 0:07:09]} 49. Rxa7 {[%emt 0:00:38]} Re1+ {[%emt 0:00:07]} 50. Kh2 {[%emt 0:00:09]} Re2 {[%emt 0:00:11]} 51. Kg1 {[%emt 0:01:16]} h2+ {[%emt 0:01:51]} 52. Kxh2 {[%emt 0:00:03]} Rxf2+ {[%emt 0:00:05]} 53. Kg1 {[%emt 0:00:05]} Rd2 {[%emt 0:00:55]} 54. Rc1 {[%emt 0:00:37]} Rg3+ {[%emt 0:03:12]} 55. Kh1 {[%emt 0:00:28]} Rf3 {[%emt 0:08:20]} 56. b6 {[%emt 0:00:52]} Rb2 {[%emt 0:00:46]} 57. Rb7 {[%emt 0:01:56]} Kg5 {[%emt 0:00:30]} 58. Kg1 {[%emt 0:03:33]} Kg4 {[%emt 0:02:36]} 59. Rcc7 {[%emt 0:00:58]} Kh3 {[%emt 0:01:24]} 60. Rc1 {[%emt 0:00:58]} Rg2+ {[%emt 0:00:07]} 61. Kh1 {[%emt 0:00:05]} Rh2+ {[%emt 0:00:46]} 62. Kg1 {[%emt 0:00:05]} Rg3+ {[%emt 0:00:04]} 0-1

[Event "WYCC 2018 O16"]
[Site "Halkidiki"]
[Date "2018.10.29"]
[Round "10"]
[White "Milosevic, Milos"]
[Black "Schitco, Ivan"]
[Result "0-1"]
[ECO "B12"]
[WhiteElo "2306"]
[BlackElo "2376"]
[Annotator "NA"]
[PlyCount "70"]
[EventDate "2018.10.20"]
[EventType "swiss"]
[EventCountry "GRE"]
[SourceTitle "playchess.com"]
[Source "ChessBase"]
[SourceQuality "1"]
[TimeControl "40/5400+30:1800+30"]

1. e4 {[%emt 0:00:00]} c6 {[%emt 0:00:00]} 2. d4 {[%emt 0:00:00]} d5 {[%emt 0:00:00]} 3. f3 {[%emt 0:00:12]} Qb6 {[%emt 0:00:19]} 4. a4 {[%emt 0:01:26]} e5 {[%emt 0:00:15]} 5. dxe5 {[%emt 0:02:26]} a5 {[%emt 0:00:17]} 6. exd5 {[%emt 0:01:59]} Bc5 {[%emt 0:00:17]} 7. Nh3 {[%emt 0:01:27]} Bxh3 {[%emt 0:00:31]} 8. gxh3 {[%emt 0:00:04]} Bf2+ {[%emt 0:01:02]} 9. Ke2 {[%emt 0:00:06]} cxd5 {[%emt 0:00:46]} 10. f4 {[%emt 0:42:17]} Ne7 {[%emt 0:12:08]} 11. Bg2 {[%emt 0:02:19]} Nbc6 {[%emt 0:05:12]} 12. Nc3 {[%emt 0:03:38]} Bh4 {[%emt 0:22:05]} (12... Rd8 $17) 13. Qg1 {[%emt 0:04:07]} Nd4+ {[%emt 0:05:13]} 14. Kd1 {[%emt 0:01:19]} Qg6 {[%emt 0:00:48]} 15. Qxd4 {[%emt 0:01:03]} Qxg2 {[%emt 0:00:09]} 16. Qg1 {[%emt 0:00:16]} Qf3+ {[%emt 0:04:01]} 17. Ne2 {[%emt 0:02:22]} d4 {[%emt 0:03:47]} 18. Ra3 {[%emt 0:01:30]} Qe4 {[%emt 0:08:53]} 19. Qf1 {[%emt 0:02:30]} Rc8 {[%emt 0:04:16]} 20. Rd3 {[%emt 0:00:05]} Bf2 {[%emt 0:01:09]} 21. Ng3 {[%emt 0:00:57]} Bxg3 {[%emt 0:01:00]} 22. hxg3 $11 {[%emt 0:00:06]} Nd5 {[%emt 0:05:41]} 23. Rh2 {[%emt 0:05:46]} Nb4 {[%emt 0:05:35]} 24. Qf3 {[%emt 0:01:47]} Qf5 {[%emt 0:00:11]} 25. g4 {[%emt 0:01:43]} Qd7 {[%emt 0:00:38]} 26. Ra3 {[%emt 0:01:18]} O-O {[%emt 0:01:27]} 27. Qe4 {[%emt 0:05:01]} Rc4 {[%emt 0:07:15]} 28. Qf5 {[%emt 0:07:19]} Qc6 {[%emt 0:00:36]} 29. h4 {[%emt 0:03:23]} g6 {[%emt 0:05:05]} 30. Qf6 {[%emt 0:00:12]} Qe4 {[%emt 0:00:11]} 31. h5 {[%emt 0:04:06]} Rxc2 {[%emt 0:00:22]} 32. Bd2 {[%emt 0:02:05]} Rfc8 {[%emt 0:02:05]} 33. hxg6 {[%emt 0:03:08]} Rc1+ {[%emt 0:00:14]} 34. Bxc1 {[%emt 0:00:07]} Rxc1+ {[%emt 0:00:04]} 35. Kxc1 {[%emt 0:00:07]} Qe1# {[%emt 0:00:04]} 0-1

[Event "WYCC 2018 O16"]
[Site "Halkidiki"]
[Date "2018.10.29"]
[Round "10"]
[White "Travadon, Loic"]
[Black "Kalavannan, Koby"]
[Result "1/2-1/2"]
[ECO "A48"]
[WhiteElo "2293"]
[BlackElo "2365"]
[Annotator "NA"]
[PlyCount "157"]
[EventDate "2018.10.20"]
[EventType "swiss"]
[EventCountry "GRE"]
[SourceTitle "playchess.com"]
[Source "ChessBase"]
[SourceQuality "1"]
[TimeControl "40/5400+30:1800+30"]

1. d4 {[%emt 0:00:00]} Nf6 {[%emt 0:00:00]} 2. Nf3 {[%emt 0:00:00]} g6 {[%emt 0:00:00]} 3. c4 {[%emt 0:00:00]} Bg7 {[%emt 0:00:00]} 4. Nc3 {[%emt 0:00:00]} d6 {[%emt 0:00:00]} 5. e4 {[%emt 0:00:00]} O-O {[%emt 0:00:06]} 6. h3 {[%emt 0:00:00]} Na6 {[%emt 0:00:20]} 7. Be3 {[%emt 0:00:23]} c5 {[%emt 0:00:23]} 8. d5 {[%emt 0:01:11]} e6 {[%emt 0:00:15]} 9. Bd3 {[%emt 0:01:32]} exd5 {[%emt 0:00:08]} 10. exd5 {[%emt 0:00:08]} Nb4 {[%emt 0:01:33] E90: King's Indian: Classical: Early deviations and 6 h3} (10... Bf5 11. Bxf5 gxf5 12. O-O Ne4 13. Nxe4 fxe4 14. Ng5 Qe7 15. Qb1 Rae8 16. h4 h6 17. Nh3 Qxh4 18. Nf4 {0-1 (39) Postny,E (2658)-Jones,G (2623) Berlin 2015}) 11. Bb1 {[%emt 0:00:16]} b5 {[%emt 0:00:45]} 12. a3 {[%emt 0:04:11]} Qa5 {[%emt 0:01:20]} 13. O-O {[%emt 0:09:19]} bxc4 {[%emt 0:01:34]} 14. Bf4 {[%emt 0:03:46]} Rd8 $146 {[%emt 0:09:57]} ({Predecessor:} 14... Bb7 15. Qd2 Nd3 16. Bxd3 cxd3 17. Bxd6 Rfe8 18. b4 cxb4 19. Bxb4 {1-0 (106) Barbero,G (2440)-Forster,R (2470) Switzerland 1998}) 15. Bxg6 {[%emt 0:20:23]} (15. Re1 $15) 15... hxg6 {[%emt 0:01:13]} 16. axb4 {[%emt 0:00:04]} Qxb4 {[%emt 0:00:28]} 17. Qd2 {[%emt 0:01:13]} Bf5 {[%emt 0:09:17]} 18. Rfe1 {[%emt 0:05:41]} Qb7 {[%emt 0:05:20]} 19. Re3 {[%emt 0:06:15]} Rab8 {[%emt 0:10:10]} 20. g4 {[%emt 0:06:15]} Bd3 $1 {[%emt 0:01:06]} 21. Ne1 {[%emt 0:00:09]} Qxb2 {[%emt 0:16:25]} 22. Qxb2 {[%emt 0:00:06]} Rxb2 {[%emt 0:00:01]} 23. Nxd3 {[%emt 0:03:15]} cxd3 {[%emt 0:00:02]} 24. Rxd3 {[%emt 0:03:15]} Rb3 {[%emt 0:09:43]} 25. Rad1 {[%emt 0:01:51]} Nxg4 {[%emt 0:10:29]} 26. hxg4 {[%emt 0:00:49]} Rxc3 {[%emt 0:00:04]} 27. Rxc3 $19 {[%emt 0:00:08]} Bxc3 {[%emt 0:00:02]} 28. Rd3 {[%emt 0:00:10]} Bd4 {[%emt 0:05:03]} 29. Ra3 {[%emt 0:00:19]} Rd7 {[%emt 0:03:59]} 30. Ra6 {[%emt 0:00:29]} Be5 {[%emt 0:00:43]} 31. Bxe5 {[%emt 0:00:06]} dxe5 {[%emt 0:00:01]} 32. d6 {[%emt 0:00:22]} f6 {[%emt 0:01:30]} 33. Rc6 {[%emt 0:01:40]} Kf7 {[%emt 0:00:03]} 34. Rxc5 {[%emt 0:00:04]} Ke6 {[%emt 0:00:05]} 35. Ra5 {[%emt 0:00:06]} f5 {[%emt 0:09:44]} 36. Kg2 {[%emt 0:00:17]} fxg4 {[%emt 0:00:29]} 37. Kg3 {[%emt 0:00:07]} Kf5 {[%emt 0:01:05]} 38. Ra4 {[%emt 0:00:03]} Rxd6 {[%emt 0:04:09]} 39. Rxa7 {[%emt 0:00:01]} Rd3+ {[%emt 0:00:01]} 40. Kg2 {[%emt 0:00:00]} Kf6 {[%emt 0:00:00]} 41. Ra6+ {[%emt 0:00:18]} Kf5 {[%emt 0:06:46]} 42. Ra8 {[%emt 0:00:15]} Rf3 {[%emt 0:15:41]} 43. Rf8+ {[%emt 0:00:11]} Ke4 {[%emt 0:00:01]} 44. Rg8 {[%emt 0:00:13]} Rf6 {[%emt 0:00:11]} 45. Kg3 {[%emt 0:00:09]} Kd3 {[%emt 0:02:38]} 46. Ra8 {[%emt 0:00:29]} Rf3+ {[%emt 0:00:21]} 47. Kg2 {[%emt 0:00:04]} e4 {[%emt 0:00:58]} 48. Ra3+ {[%emt 0:00:23]} Ke2 {[%emt 0:00:31]} 49. Ra2+ {[%emt 0:00:03]} Kd3 {[%emt 0:00:04]} 50. Ra3+ {[%emt 0:00:02]} Kd4 {[%emt 0:00:02]} 51. Ra4+ {[%emt 0:00:58]} Ke5 {[%emt 0:00:06]} 52. Ra8 {[%emt 0:00:07]} Kf5 {[%emt 0:03:00]} 53. Rf8+ {[%emt 0:00:07]} Kg5 {[%emt 0:00:01]} 54. Re8 {[%emt 0:00:06]} Kf4 {[%emt 0:01:27]} 55. Rf8+ {[%emt 0:00:05]} Kg5 {[%emt 0:00:02]} 56. Re8 {[%emt 0:00:06]} g3 {[%emt 0:00:11]} 57. fxg3 {[%emt 0:00:36]} Kf5 {[%emt 0:00:03]} 58. Re7 {[%emt 0:00:43]} Ra3 {[%emt 0:00:28]} 59. Rf7+ {[%emt 0:02:32]} Ke5 {[%emt 0:00:09]} 60. Kf2 {[%emt 0:01:26]} Ra2+ {[%emt 0:02:09]} 61. Ke3 {[%emt 0:00:13]} Ra3+ {[%emt 0:00:02]} 62. Kf2 {[%emt 0:00:03]} Ra2+ {[%emt 0:00:24]} 63. Ke3 {[%emt 0:00:05]} Rg2 {[%emt 0:00:03]} 64. Re7+ {[%emt 0:00:08]} Kf5 {[%emt 0:00:11]} 65. Rxe4 {[%emt 0:00:32]} Rxg3+ {[%emt 0:06:56]} 66. Kf2 {[%emt 0:00:01]} Rg4 {[%emt 0:00:04]} 67. Re8 {[%emt 0:00:12]} Rf4+ {[%emt 0:00:20]} 68. Kg3 {[%emt 0:00:06]} Rg4+ {[%emt 0:00:01]} 69. Kf3 {[%emt 0:00:06]} Kg5 {[%emt 0:00:14]} 70. Ra8 {[%emt 0:00:52]} Rf4+ {[%emt 0:00:19]} 71. Kg3 {[%emt 0:00:05]} Rf5 {[%emt 0:00:02]} 72. Ra4 {[%emt 0:00:13]} Rb5 {[%emt 0:00:01]} 73. Rg4+ {[%emt 0:00:15]} Kf5 {[%emt 0:00:02]} 74. Rf4+ {[%emt 0:00:04]} Ke6 {[%emt 0:00:06]} 75. Kg4 {[%emt 0:00:38]} g5 {[%emt 0:00:03]} 76. Ra4 {[%emt 0:00:10]} Rd5 {[%emt 0:00:12]} 77. Ra6+ {[%emt 0:00:04]} Rd6 {[%emt 0:00:01]} 78. Rxd6+ {[%emt 0:00:07]} Kxd6 {[%emt 0:00:04]} 79. Kxg5 {[%emt 0:00:04]} 1/2-1/2

[Event "WYCC 2018 O16"]
[Site "Halkidiki"]
[Date "2018.10.29"]
[Round "10"]
[White "Jakab, Bela"]
[Black "Teclaf, Pawel"]
[Result "0-1"]
[ECO "C10"]
[WhiteElo "2285"]
[BlackElo "2384"]
[Annotator "NA"]
[PlyCount "76"]
[EventDate "2018.10.20"]
[EventType "swiss"]
[EventCountry "GRE"]
[SourceTitle "playchess.com"]
[Source "ChessBase"]
[SourceQuality "1"]
[TimeControl "40/5400+30:1800+30"]

1. e4 {[%emt 0:00:00]} e6 {[%emt 0:00:00]} 2. d4 {[%emt 0:00:00]} d5 {[%emt 0:00:00]} 3. Nc3 {[%emt 0:00:00]} Nc6 {[%emt 0:00:00]} 4. e5 {[%emt 0:00:40]} f6 {[%emt 0:00:00]} 5. Nf3 {[%emt 0:03:11]} fxe5 {[%emt 0:00:59]} 6. Nxe5 {[%emt 0:01:42]} Nxe5 {[%emt 0:04:03]} 7. dxe5 {[%emt 0:00:07]} Bd7 {[%emt 0:04:14]} 8. Bd3 {[%emt 0:01:47]} Qh4 {[%emt 0:12:50]} 9. g3 {[%emt 0:22:45]} Qe7 {[%emt 0:06:46]} 10. h4 {[%emt 0:02:43]} Qf7 {[%emt 0:01:35]} 11. Bg5 {[%emt 0:06:30]} Bc5 {[%emt 0:08:11]} 12. Qe2 {[%emt 0:06:08]} Ne7 {[%emt 0:05:52]} 13. Bxe7 {[%emt 0:04:32]} Bxe7 {[%emt 0:07:21]} 14. O-O-O $11 {[%emt 0:01:16]} O-O-O {[%emt 0:03:15]} 15. f4 {[%emt 0:05:33]} Kb8 {[%emt 0:05:47]} 16. h5 {[%emt 0:03:07]} c5 {[%emt 0:03:38]} 17. Qf2 {[%emt 0:06:25]} g5 {[%emt 0:06:33]} 18. hxg6 {[%emt 0:03:35]} hxg6 {[%emt 0:00:04]} 19. Rh2 {[%emt 0:04:13]} g5 {[%emt 0:04:50]} 20. Rdh1 {[%emt 0:03:41]} Rxh2 {[%emt 0:00:12]} 21. Rxh2 {[%emt 0:00:06]} c4 {[%emt 0:01:36]} 22. Rh7 {[%emt 0:01:36]} Qf8 {[%emt 0:00:04]} 23. Bf1 {[%emt 0:08:15]} Bc5 {[%emt 0:00:53]} 24. Qd2 {[%emt 0:02:17]} Qg8 {[%emt 0:01:51]} 25. Rh6 {[%emt 0:00:29]} gxf4 {[%emt 0:06:08]} 26. Qxf4 {[%emt 0:00:27]} Be7 {[%emt 0:00:30]} 27. Rf6 {[%emt 0:01:46]} Ka8 {[%emt 0:00:03]} 28. b3 {[%emt 0:03:52]} cxb3 {[%emt 0:04:21]} 29. axb3 {[%emt 0:00:08]} Rc8 {[%emt 0:01:45]} 30. Bb5 {[%emt 0:01:04]} Qd8 {[%emt 0:01:13]} 31. Bxd7 {[%emt 0:03:24]} Qxd7 {[%emt 0:00:01]} 32. Ne2 {[%emt 0:00:24]} Qc7 {[%emt 0:01:38]} 33. Nd4 {[%emt 0:00:23]} Bxf6 {[%emt 0:01:25]} 34. Qxf6 {[%emt 0:01:28]} Qc3 {[%emt 0:00:10]} 35. Qxe6 {[%emt 0:00:28]} Qa1+ {[%emt 0:00:03]} 36. Kd2 {[%emt 0:00:30]} Qxd4+ {[%emt 0:00:12]} 37. Kc1 {[%emt 0:00:08]} Qa1+ {[%emt 0:00:06]} 38. Kd2 {[%emt 0:00:05]} Qc3+ {[%emt 0:00:02]} 0-1